bitfinex-derivatives/quotes_BTCF0:USTF0_20250309
["timestamp","ask_amount","ask_price","bid_price","bid_amount"]
[1741509190050,0.2063346,85982.0,85981.0,0.5021554]
[1741509190752,0.2063346,85982.0,85981.0,0.5031554]
[1741509191560,0.2063346,85982.0,85981.0,0.36768]
[1741509191747,0.2063346,85982.0,85981.0,0.00248]
[1741509191949,0.2063346,85982.0,85981.0,0.00348]
[1741509192347,0.2063346,85982.0,85981.0,0.003]
[1741509192547,0.2063346,85982.0,85981.0,0.001]
[1741509193064,0.0697954,85981.0,85980.0,4e-05]
[1741509193363,0.0697954,85981.0,85978.0,0.3608]
[1741509193364,0.069797,85979.0,85978.0,0.3608]
[1741509194060,0.101497,85979.0,85978.0,0.3608]
[1741509194256,0.101497,85979.0,85978.0,0.36088]
[1741509195070,0.0697986,85977.0,85976.0,0.1815267]
[1741509195254,0.0697986,85977.0,85976.0,0.16685506]
[1741509195255,0.1447586,85977.0,85976.0,0.16685506]
[1741509195555,0.1447586,85977.0,85966.0,4e-05]
[1741509195556,0.0698067,85967.0,85966.0,4e-05]
[1741509195861,0.1447667,85967.0,85966.0,4e-05]
[1741509196061,0.5055667,85967.0,85966.0,8e-05]
[1741509196555,0.5677667,85967.0,85966.0,0.00016]
[1741509196955,0.5677667,85967.0,85966.0,0.00116]
[1741509197157,0.13716,85967.0,85966.0,0.0709675]
[1741509197358,0.2069667,85967.0,85966.0,0.0710075]
[1741509198257,0.2069667,85967.0,85966.0,0.0710875]
[1741509199256,0.2069667,85967.0,85966.0,0.00128]
[1741509200353,0.2069667,85967.0,85966.0,0.001]
[1741509202768,0.2069667,85967.0,85966.0,0.00108]
[1741509203564,0.5677667,85967.0,85966.0,0.00108]
[1741509206366,0.5677667,85967.0,85966.0,0.001]
[1741509207273,0.5677667,85967.0,85966.0,0.00108]
[1741509207872,0.5677667,85967.0,85964.0,4e-05]
[1741509207873,0.069814,85958.0,85947.0,0.3652]
[1741509208066,0.505614,85958.0,85948.0,0.0635]
[1741509208264,0.0698214,85949.0,85948.0,0.0635]
[1741509208468,0.1448614,85949.0,85948.0,0.0635]
[1741509208964,0.08684959,85949.0,85948.0,0.1333222]
[1741509209467,0.08684959,85949.0,85948.0,0.1384022]
[1741509209768,0.08584959,85949.0,85948.0,0.1384022]
[1741509210084,0.21717099,85949.0,85948.0,0.1384022]
[1741509212473,0.10544,85949.0,85948.0,0.1434022]
[1741509212678,0.07404,85949.0,85948.0,0.1434022]
[1741509212977,0.07504,85949.0,85948.0,0.1434022]
[1741509214267,0.07504,85949.0,85948.0,0.1434822]
[1741509216863,0.1448614,85949.0,85948.0,0.1434822]
[1741509218377,0.07504,85949.0,85948.0,0.1434822]
[1741509218675,0.1448614,85949.0,85948.0,0.1434822]
[1741509219977,0.07504,85949.0,85948.0,0.1434822]
[1741509221468,0.07504,85949.0,85948.0,0.1759822]
[1741509224373,0.07504,85949.0,85948.0,0.5411822]
[1741509226468,0.07504,85949.0,85948.0,0.5412222]
[1741509227980,0.07504,85949.0,85948.0,0.5413022]
[1741509228776,0.1760614,85949.0,85948.0,0.5413022]
[1741509229078,0.13704,85949.0,85948.0,0.5413022]
[1741509233388,0.13704,85949.0,85948.0,0.9021022]
[1741509234284,0.10624,85949.0,85948.0,0.9021022]
[1741509236184,0.0349065,85960.0,85959.0,0.0698132]
[1741509236394,0.1097865,85960.0,85959.0,0.0698132]
[1741509236686,0.07488,85960.0,85959.0,0.0698132]
[1741509236888,0.1446924,85960.0,85959.0,0.1003132]
[1741509237583,0.1446924,85960.0,85959.0,0.1333132]
[1741509237785,0.15609106,85960.0,85959.0,0.1333932]
[1741509237984,0.18859106,85960.0,85959.0,0.1333932]
[1741509238185,0.18859106,85960.0,85959.0,0.1013932]
[1741509239487,0.18859106,85960.0,85959.0,0.1338932]
[1741509239697,0.11877866,85960.0,85959.0,0.1338932]
[1741509239882,0.18859106,85960.0,85959.0,0.1338932]
[1741509241589,0.18859106,85960.0,85959.0,0.1013932]
[1741509242188,0.11877866,85960.0,85959.0,0.1340932]
[1741509242490,0.18859106,85960.0,85959.0,0.1340932]
[1741509245589,0.0325,85960.0,85959.0,0.1340932]
[1741509246289,0.10738,85960.0,85959.0,0.1341332]
[1741509246488,0.0325,85960.0,85959.0,0.1341332]
[1741509247285,0.0325,85960.0,85959.0,0.1342132]
[1741509248214,0.0325,85960.0,85959.0,0.4994932]
[1741509249806,0.0325,85960.0,85959.0,1.2210932]
[1741509250511,0.0325,85960.0,85959.0,1.4994143]
[1741509251903,0.1023124,85960.0,85959.0,1.4994143]
[1741509252905,0.0325,85960.0,85959.0,1.4994143]
[1741509253106,0.0325,85960.0,85959.0,1.4667143]
[1741509253308,0.0325,85960.0,85959.0,1.1881132]
[1741509254014,0.0652,85960.0,85959.0,1.1881132]
[1741509254211,0.0652,85960.0,85959.0,1.1881932]
[1741509256722,0.1350124,85960.0,85959.0,1.1881932]
[1741509257219,0.1350124,85960.0,85959.0,0.8229932]
[1741509257615,0.1350124,85960.0,85959.0,0.1337932]
[1741509257816,0.1350124,85960.0,85959.0,0.4945932]
[1741509258721,0.0652,85960.0,85959.0,0.4945932]
[1741509261325,0.0652,85960.0,85959.0,0.4946332]
[1741509261621,0.0327,85960.0,85959.0,0.4946332]
[1741509262218,0.10704,85965.0,85963.0,4e-05]
[1741509262522,0.10704,85965.0,85964.0,0.0698092]
[1741509262717,0.10704,85965.0,85964.0,0.1346092]
[1741509262917,0.10704,85965.0,85964.0,0.4998092]
[1741509263314,0.10704,85965.0,85964.0,0.4998892]
[1741509264222,0.10804,85965.0,85964.0,0.4998892]
[1741509266428,0.00017448,85966.0,85965.0,0.0698084]
[1741509266627,0.00017448,85966.0,85965.0,0.4306084]
[1741509266830,0.00017448,85966.0,85965.0,0.4950084]
[1741509267233,0.00017448,85966.0,85965.0,0.4950484]
[1741509267827,0.00117448,85966.0,85965.0,0.4950484]
[1741509268226,0.00117448,85966.0,85965.0,0.4951284]
[1741509269035,0.00117448,85966.0,85965.0,0.8603284]
[1741509278143,0.00117448,85966.0,85965.0,1.2211284]
[1741509283241,0.00117448,85966.0,85965.0,0.4995284]
[1741509283443,0.00117448,85966.0,85965.0,0.8603284]
[1741509286451,0.00117448,85966.0,85965.0,0.4995284]
[1741509286653,0.00117448,85966.0,85965.0,1.2211284]
[1741509292754,0.00117448,85966.0,85965.0,1.4994495]
[1741509295759,0.00117448,85966.0,85965.0,1.2211284]
[1741509297953,0.00017448,85966.0,85965.0,1.2241284]
[1741509298856,0.00017448,85966.0,85965.0,1.2251284]
[1741509299052,0.00017448,85966.0,85965.0,1.2569084]
[1741509299448,0.00017448,85966.0,85965.0,1.2589084]
[1741509299854,0.0303,85969.0,85968.0,0.0698059]
[1741509300353,0.0303,85969.0,85968.0,0.0698459]
[1741509300558,0.17444458,85980.0,85973.0,0.0349009]
[1741509300754,0.09270388,85980.0,85979.0,0.791397]
[1741509301059,0.09270388,85980.0,85979.0,0.866197]
[1741509301262,0.09270388,85980.0,85979.0,0.866237]
[1741509301454,0.20859754,85985.0,85984.0,0.0697929]
[1741509302166,0.20859754,85985.0,85984.0,0.4349929]
[1741509302368,0.20859754,85985.0,85984.0,0.4653329]
[1741509302564,0.20859754,85985.0,85984.0,0.5401329]
[1741509302565,0.15743804,85985.0,85984.0,0.5401329]
[1741509302756,0.2093275,85994.0,85993.0,0.0697856]
[1741509302956,0.2093275,85994.0,85993.0,1.1565856]
[1741509303365,0.2093275,85994.0,85993.0,1.1869256]
[1741509304363,0.2093275,85994.0,85993.0,1.1870056]
[1741509305265,0.2093275,85994.0,85993.0,1.1870456]
[1741509306366,0.2093275,85994.0,85993.0,1.1871256]
[1741509307168,0.0316,86000.0,85999.0,0.0697808]
[1741509307664,0.0316,86000.0,85999.0,0.4349808]
[1741509307861,0.0316,86000.0,85999.0,0.4660808]
[1741509308662,0.0316,86000.0,85999.0,0.4730808]
[1741509308869,0.0316,86000.0,85999.0,0.48490878]
[1741509309370,0.0316,86000.0,85999.0,0.49190878]
[1741509310757,0.0316,86000.0,85999.0,0.49090878]
[1741509311157,0.0308,86001.0,86000.0,0.06978]
[1741509311360,0.0305,86019.0,86018.0,0.0697653]
[1741509311563,0.10526,86019.0,86018.0,0.0697653]
[1741509311869,0.1002645,86019.0,86018.0,0.0697653]
[1741509312172,0.1053,86019.0,86018.0,0.0697653]
[1741509312667,0.1053,86019.0,86018.0,0.08135687]
[1741509312870,0.1053,86019.0,86018.0,0.11345687]
[1741509313870,0.1053,86019.0,86018.0,0.11349687]
[1741509314276,0.1055,86019.0,86018.0,0.11349687]
[1741509314472,0.1358,86019.0,86018.0,0.11357687]
[1741509314864,0.1358,86019.0,86018.0,0.1020253]
[1741509315465,0.2055645,86019.0,86018.0,0.1020253]
[1741509316474,0.2355645,86019.0,86018.0,0.4672253]
[1741509317165,0.1658,86019.0,86018.0,0.4672253]
[1741509318775,0.1658,86019.0,86018.0,0.8280253]
[1741509319274,0.2355645,86019.0,86018.0,0.8280253]
[1741509320767,0.1658,86019.0,86018.0,0.8280253]
[1741509321174,4e-05,86023.0,86018.0,0.8280253]
[1741509321175,4e-05,86023.0,86018.0,0.75826]
[1741509321477,0.0325,86024.0,86023.0,0.0697613]
[1741509321673,0.064,86024.0,86023.0,0.0697613]
[1741509322377,0.064,86024.0,86023.0,0.4610013]
[1741509322571,0.064,86024.0,86023.0,0.4942013]
[1741509323073,0.064,86024.0,86023.0,0.4943613]
[1741509323574,0.06408,86024.0,86023.0,0.4943613]
[1741509323769,0.06408,86024.0,86023.0,0.4945613]
[1741509323969,0.06408,86024.0,86023.0,0.1337613]
[1741509324170,0.06408,86024.0,86023.0,0.8553613]
[1741509325482,0.06408,86024.0,86023.0,1.2205613]
[1741509327077,0.06408,86024.0,86023.0,1.2255613]
[1741509327275,8e-05,86024.0,86023.0,1.2301613]
[1741509327475,0.0017444,86025.0,86024.0,0.0697605]
[1741509328083,0.0017444,86025.0,86024.0,0.1333405]
[1741509328383,0.0307,86025.0,86024.0,0.1333405]
[1741509328680,0.0307,86025.0,86024.0,0.1363405]
[1741509329383,0.03078,86025.0,86024.0,0.1363405]
[1741509329685,0.03078,86025.0,86024.0,0.1365405]
[1741509330384,0.02810137,86025.0,86024.0,0.1365405]
[1741509330585,0.02810137,86025.0,86024.0,0.1395405]
[1741509331284,0.02810137,86025.0,86024.0,0.5047405]
[1741509332082,0.02810137,86025.0,86024.0,0.5045405]
[1741509332384,0.02802137,86025.0,86024.0,0.5042605]
[1741509332681,0.02970137,86025.0,86024.0,0.5042605]
[1741509332883,0.02970137,86025.0,86024.0,0.5046605]
[1741509334582,0.00168,86025.0,86024.0,0.5046605]
[1741509334776,0.00168,86025.0,86024.0,0.5375605]
[1741509337188,0.00017438,86027.0,86026.0,0.0697589]
[1741509337693,0.00185438,86027.0,86026.0,0.0697589]
[1741509338583,0.00185438,86027.0,86026.0,0.1360589]
[1741509338777,0.00185438,86027.0,86026.0,0.1380589]
[1741509341083,0.00185438,86027.0,86026.0,0.41614473]
[1741509341279,0.00193438,86027.0,86026.0,0.41614473]
[1741509341478,0.07488,86037.0,86036.0,0.0697508]
[1741509341788,0.07488,86037.0,86036.0,0.4305508]
[1741509342792,0.07656,86037.0,86036.0,0.4305508]
[1741509343182,0.1463099,86037.0,86036.0,0.3608]
[1741509343583,0.1781099,86037.0,86036.0,0.3608]
[1741509344387,0.1781099,86037.0,86036.0,0.4305508]
[1741509344692,0.1781099,86037.0,86036.0,0.3608]
[1741509345690,0.1781099,86037.0,86036.0,0.4305508]
[1741509346587,0.1781099,86037.0,86036.0,0.3608]
[1741509346787,0.0697524,86034.0,86033.0,0.27808583]
[1741509347793,0.1003524,86034.0,86033.0,0.27808583]
[1741509348880,0.1003524,86034.0,86031.0,0.27808583]
[1741509349082,0.069754,86032.0,86031.0,0.27808583]
[1741509349288,0.144794,86032.0,86031.0,0.27808583]
[1741509349493,0.207894,86032.0,86031.0,0.27808583]
[1741509352491,0.207894,86032.0,86028.0,0.00017438]
[1741509352794,0.0697564,86029.0,86028.0,0.00017438]
[1741509356994,0.1012564,86029.0,86028.0,0.00017438]
[1741509359694,0.1761764,86029.0,86028.0,0.13103158]
[1741509361492,0.1761764,86029.0,86028.0,0.06127438]
[1741509361694,0.1761764,86029.0,86028.0,0.13103158]
[1741509369911,0.1761764,86029.0,86028.0,0.49183158]
[1741509370105,0.1012564,86029.0,86028.0,0.49183158]
[1741509370312,0.1445964,86029.0,86028.0,0.49183158]
[1741509374513,0.1046335,86035.0,86034.0,0.0348758]
[1741509374712,0.1793935,86035.0,86034.0,0.0348758]
[1741509375709,0.1793935,86035.0,86034.0,0.0652758]
[1741509376015,0.1793935,86035.0,86034.0,0.1277758]
[1741509377914,0.00168,86037.0,86036.0,0.0697508]
[1741509378116,0.00168,86037.0,86036.0,0.4305508]
[1741509378117,0.0764,86037.0,86036.0,0.4305508]
[1741509378706,0.1461499,86037.0,86036.0,0.4305508]
[1741509381511,0.1461499,86037.0,86036.0,0.63949998]
[1741509382019,0.2085499,86037.0,86036.0,0.63949998]
[1741509382911,0.2415499,86037.0,86036.0,0.63949998]
[1741509383110,0.2085499,86037.0,86036.0,0.63949998]
[1741509383718,0.1768499,86037.0,86036.0,0.63949998]
[1741509383918,0.1461499,86037.0,86036.0,0.63949998]
[1741509384315,0.1460299,86037.0,86036.0,0.63949998]
[1741509384509,0.1460299,86037.0,86036.0,0.56974918]
[1741509384811,0.2106299,86037.0,86036.0,0.56974918]
[1741509386219,0.2106299,86037.0,86036.0,0.3608]
[1741509386421,0.2106299,86037.0,86036.0,0.4957508]
[1741509388317,0.2106299,86037.0,86036.0,0.426]
[1741509390015,0.2106299,86037.0,86036.0,0.0652]
[1741509390211,0.2106299,86037.0,86036.0,0.426]
[1741509390418,0.2106299,86037.0,86036.0,0.0652]
[1741509391820,0.00168,86037.0,86036.0,0.50742596]
[1741509392133,4e-05,86046.0,86044.0,0.0697443]
[1741509392320,0.0746,86050.0,86044.0,0.4305443]
[1741509392521,4e-05,86048.0,86044.0,0.4305443]
[1741509393125,0.0746,86047.0,86044.0,0.4615443]
[1741509393321,0.00025438,86045.0,86044.0,0.4615443]
[1741509393931,0.00025438,86045.0,86044.0,0.8267443]
[1741509394230,0.00017438,86045.0,86044.0,0.8267443]
[1741509395330,0.00025438,86045.0,86044.0,0.8267443]
[1741509397623,0.00025438,86045.0,86044.0,0.4659443]
[1741509397825,0.00025438,86045.0,86044.0,1.1875443]
[1741509403223,0.06999788,86045.0,86044.0,1.1875443]
[1741509403427,0.10269788,86045.0,86044.0,1.1875443]
[1741509403929,0.00025438,86045.0,86044.0,1.1875443]
[1741509404322,0.00029438,86045.0,86044.0,1.1875443]
[1741509405226,0.00037438,86045.0,86044.0,1.1875443]
[1741509405630,0.00037438,86045.0,86044.0,0.8223443]
[1741509407236,0.00017438,86045.0,86044.0,0.8223443]
[1741509408239,0.00025438,86045.0,86044.0,0.8223443]
[1741509408433,0.00025438,86045.0,86044.0,0.1007443]
[1741509408737,4e-05,86049.0,86044.0,0.7526]
[1741509408943,4e-05,86049.0,86048.0,0.069741]
[1741509409235,0.0332,86059.0,86047.0,0.0325]
[1741509409236,0.0746,86053.0,86047.0,0.0325]
[1741509409434,0.0746,86053.0,86052.0,0.4305378]
[1741509410342,0.07468,86053.0,86052.0,0.4942378]
[1741509410640,0.07468,86053.0,86052.0,0.4952378]
[1741509411030,0.07468,86053.0,86052.0,0.4962378]
[1741509412830,0.0746,86053.0,86052.0,0.4962378]
[1741509413229,0.144337,86053.0,86052.0,0.4962378]
[1741509413435,0.175637,86053.0,86052.0,0.4962378]
[1741509413636,0.208037,86053.0,86052.0,0.4962378]
[1741509414233,0.208117,86053.0,86052.0,0.4962378]
[1741509414939,0.208117,86053.0,86052.0,0.3953]
[1741509415130,0.208117,86053.0,86052.0,0.002]
[1741509416239,0.208197,86053.0,86052.0,0.002]
[1741509417334,0.208237,86053.0,86052.0,0.002]
[1741509418241,0.208317,86053.0,86052.0,0.002]
[1741509420841,0.1046281,86036.0,86035.0,0.069751]
[1741509421041,0.1792281,86036.0,86035.0,0.069751]
[1741509421644,0.1792281,86036.0,86035.0,0.100751]
[1741509422443,0.1802281,86036.0,86035.0,0.100751]
[1741509424447,0.1802281,86036.0,86035.0,0.031]
[1741509424944,0.19161886,86036.0,86035.0,0.031]
[1741509426340,0.0697524,86034.0,86033.0,0.00068]
[1741509426547,0.0697548,86031.0,86030.0,4e-05]
[1741509426751,0.1443548,86031.0,86030.0,4e-05]
[1741509427243,0.0746,86031.0,86025.0,0.03186]
[1741509427443,0.0697564,86029.0,86025.0,0.03186]
[1741509427944,0.1613564,86029.0,86025.0,0.03186]
[1741509428150,0.1613564,86029.0,86027.0,0.032]
[1741509428351,0.1613564,86029.0,86028.0,0.20868659]
[1741509428647,0.1613564,86029.0,86028.0,0.00037438]
[1741509430334,0.1623564,86029.0,86028.0,0.00037438]
[1741509432248,0.1623564,86029.0,86025.0,0.00056]
[1741509432447,0.0697589,86026.0,86025.0,0.00056]
[1741509432638,0.1443589,86026.0,86025.0,0.00056]
[1741509432845,0.2943589,86026.0,86025.0,0.00056]
[1741509433951,0.1443589,86026.0,86025.0,0.00156]
[1741509434348,0.1443589,86026.0,86025.0,0.00176]
[1741509435351,0.1443589,86026.0,86025.0,0.00184]
[1741509436253,0.1443589,86026.0,86025.0,0.00204]
[1741509438347,0.0746,86026.0,86021.0,4e-05]
[1741509438548,0.4305621,86022.0,86021.0,4e-05]
[1741509439559,0.4305621,86022.0,86021.0,0.00204]
[1741509439856,0.4315621,86022.0,86021.0,0.00204]
[1741509440250,0.4315621,86022.0,86021.0,0.03374]
[1741509440556,0.4325621,86022.0,86021.0,0.03174]
[1741509447358,0.4325621,86022.0,86021.0,0.0317]
[1741509447863,0.4325621,86022.0,86021.0,0.03186]
[1741509449867,0.4325621,86022.0,86021.0,0.03194]
[1741509452257,0.4325621,86022.0,86021.0,0.03186]
[1741509452457,0.4325621,86022.0,86021.0,0.0317]
[1741509452956,0.4325621,86022.0,86021.0,0.03186]
[1741509456363,0.0717621,86022.0,86021.0,0.03186]
[1741509456562,0.4325621,86022.0,86021.0,0.03186]
[1741509457868,0.4325621,86022.0,86021.0,0.0317]
[1741509458467,0.4325621,86022.0,86021.0,0.03186]
[1741509460270,0.4325621,86022.0,86021.0,0.03194]
[1741509461267,0.4325621,86022.0,86021.0,0.03202]
[1741509462268,0.4325621,86022.0,86021.0,0.03186]
[1741509463066,0.4325621,86022.0,86021.0,0.0317]
[1741509463467,0.4325621,86022.0,86021.0,0.03186]
[1741509465577,0.4639621,86022.0,86021.0,0.03186]
[1741509467371,0.4639621,86022.0,86021.0,0.0317]
[1741509467966,0.4639621,86022.0,86021.0,0.03186]
[1741509470477,0.4639621,86022.0,86013.0,0.01291439]
[1741509470478,0.0697686,86014.0,86013.0,0.01291439]
[1741509470677,0.0697726,86009.0,86008.0,0.20899221]
[1741509470880,0.1443726,86009.0,86008.0,0.20831221]
[1741509471581,0.1443726,86009.0,86008.0,0.13349333]
[1741509471780,0.2079726,86009.0,86008.0,0.13349333]
[1741509471983,0.2099726,86009.0,86008.0,0.13349333]
[1741509472376,0.2099726,86009.0,86001.0,0.13349333]
[1741509472572,0.0697783,86002.0,86001.0,0.13349333]
[1741509472774,0.1443783,86002.0,86001.0,0.13349333]
[1741509473278,0.1433783,86002.0,86001.0,0.13357333]
[1741509473486,0.2061783,86002.0,86001.0,0.13357333]
[1741509473683,0.2061783,86002.0,86001.0,0.16667333]
[1741509474075,0.2175518,86002.0,86001.0,0.16667333]
[1741509474579,0.2225518,86002.0,86001.0,0.16667333]
[1741509475084,0.2255518,86002.0,86001.0,0.16667333]
[1741509476169,0.2255518,86002.0,86001.0,0.19727333]
[1741509477789,0.2255518,86002.0,86001.0,0.06378]
[1741509478873,0.5863518,86002.0,86001.0,0.06378]
[1741509479874,0.2255518,86002.0,86001.0,0.06378]
[1741509480277,0.5863518,86002.0,86001.0,0.06378]
[1741509481282,0.2255518,86002.0,86001.0,0.06378]
[1741509482691,0.2255518,86002.0,86001.0,0.09658]
[1741509483794,0.2578518,86002.0,86001.0,0.06378]
[1741509491187,0.2578918,86002.0,86001.0,0.06378]
[1741509492095,0.2255918,86002.0,86001.0,0.06378]
[1741509500800,0.1509518,86002.0,86001.0,0.06378]
[1741509501008,0.1509518,86002.0,86001.0,0.1335591]
[1741509501009,0.0940135,86002.0,86001.0,0.1335591]
[1741509501305,0.1637918,86002.0,86001.0,0.06382]
[1741509502202,0.1637918,86002.0,86001.0,0.0639]
[1741509503804,0.0891518,86002.0,86001.0,0.0639]
[1741509503996,0.1637918,86002.0,86001.0,0.0639]
[1741509505104,0.1944918,86002.0,86001.0,0.0639]
[1741509506214,0.1198518,86002.0,86001.0,0.0639]
[1741509506512,0.1944518,86002.0,86001.0,0.06382]
[1741509506705,0.1198518,86002.0,86001.0,0.06382]
[1741509506906,0.1944518,86002.0,86001.0,0.06382]
[1741509508312,0.1944518,86002.0,86001.0,0.03322]
[1741509508510,0.1944518,86002.0,86001.0,0.00012]
[1741509509003,0.0697791,86001.0,86000.0,0.00017438]
[1741509509207,0.1002791,86001.0,86000.0,0.00021438]
[1741509509503,0.06978,86000.0,85996.0,0.063]
[1741509509711,0.0697824,85997.0,85996.0,0.063]
[1741509510008,0.1443824,85997.0,85996.0,0.063]
[1741509510205,0.1443824,85997.0,85996.0,0.06308]
[1741509510906,0.1473824,85997.0,85996.0,0.06308]
[1741509511204,0.1473824,85997.0,85996.0,0.063]
[1741509511412,0.1503824,85997.0,85996.0,0.063]
[1741509511802,0.1503824,85997.0,85996.0,0.0323]
[1741509511997,0.0806,85997.0,85995.0,4e-05]
[1741509512205,0.3707832,85996.0,85995.0,4e-05]
[1741509512406,0.4453832,85996.0,85995.0,4e-05]
[1741509513408,0.4453832,85996.0,85995.0,0.00012]
[1741509513711,0.4483832,85996.0,85995.0,0.00012]
[1741509514017,0.4513832,85996.0,85995.0,0.00012]
[1741509516312,0.0697873,85991.0,85990.0,0.0329]
[1741509516507,0.1444273,85991.0,85990.0,0.0329]
[1741509517217,0.2072273,85991.0,85990.0,0.0329]
[1741509517509,0.2082273,85991.0,85990.0,0.0329]
[1741509517717,0.2092273,85991.0,85990.0,0.0329]
[1741509518313,0.2092273,85991.0,85990.0,0.03298]
[1741509519808,0.0348953,85987.0,85983.0,0.3608]
[1741509520015,0.0697929,85984.0,85983.0,0.3608]
[1741509520816,0.0697946,85982.0,85981.0,4e-05]
[1741509521017,0.0687946,85982.0,85981.0,4e-05]
[1741509521318,0.0677946,85982.0,85981.0,0.00012]
[1741509521519,0.1284946,85982.0,85981.0,0.00012]
[1741509522517,0.1274946,85982.0,85981.0,0.00012]
[1741509523519,0.1304946,85982.0,85981.0,0.00012]
[1741509523819,0.1344946,85982.0,85981.0,0.00012]
[1741509524223,0.1791346,85982.0,85981.0,0.00012]
[1741509525521,0.1761346,85982.0,85981.0,0.00012]
[1741509525722,0.1811346,85982.0,85981.0,0.00012]
[1741509526023,0.18543619,85982.0,85981.0,0.03322]
[1741509526819,0.1811346,85982.0,85981.0,0.03322]
[1741509527525,0.1771346,85982.0,85981.0,0.03322]
[1741509527824,0.1811346,85982.0,85981.0,0.03322]
[1741509528327,0.18543788,85982.0,85981.0,0.03322]
[1741509529027,0.21633788,85982.0,85981.0,0.03322]
[1741509529529,0.21133788,85982.0,85981.0,0.03322]
[1741509529728,0.57313788,85982.0,85981.0,0.03322]
[1741509529926,0.57713788,85982.0,85981.0,0.03322]
[1741509531619,0.5728346,85982.0,85981.0,0.03322]
[1741509537627,0.5419346,85982.0,85981.0,0.03322]
[1741509538721,0.54624411,85982.0,85981.0,0.03322]
[1741509539121,0.18544411,85982.0,85981.0,0.03322]
[1741509539635,0.21704411,85982.0,85981.0,0.03322]
[1741509540129,0.2127346,85982.0,85981.0,0.03322]
[1741509541631,0.21704851,85982.0,85981.0,0.03322]
[1741509542927,0.0348988,85979.0,85972.0,0.03474471]
[1741509543126,0.0698035,85971.0,85954.0,0.4350165]
[1741509543425,0.1444435,85971.0,85956.0,0.0349075]
[1741509543730,0.14875741,85971.0,85968.0,4e-05]
[1741509543931,0.0698051,85969.0,85968.0,4e-05]
[1741509544437,0.07411901,85969.0,85968.0,4e-05]
[1741509544639,0.13761901,85969.0,85968.0,4e-05]
[1741509545331,0.13861901,85969.0,85968.0,4e-05]
[1741509545928,0.13761901,85969.0,85968.0,4e-05]
[1741509546131,0.13861901,85969.0,85968.0,4e-05]
[1741509546331,0.0698108,85962.0,85961.0,0.0629]
[1741509546635,0.1444508,85962.0,85961.0,0.0629]
[1741509546832,0.15583727,85962.0,85961.0,0.0629]
[1741509547340,0.15583727,85962.0,85961.0,0.1327916]
[1741509547837,0.15583727,85962.0,85961.0,0.1347916]
[1741509548833,0.15583727,85962.0,85961.0,0.4955916]
[1741509549135,0.15583727,85962.0,85961.0,0.4975916]
[1741509550828,0.15583727,85962.0,85961.0,0.42778]
[1741509551139,0.15583727,85962.0,85961.0,0.4975916]
[1741509552456,0.16015197,85962.0,85961.0,0.4975916]
[1741509554460,0.16015197,85962.0,85961.0,0.1367916]
[1741509554663,0.16015197,85962.0,85961.0,0.4975916]
[1741509556952,0.09034117,85962.0,85961.0,0.4975916]
[1741509557462,0.16015197,85962.0,85961.0,0.4975916]
[1741509557764,0.2996262,85962.0,85961.0,0.4975916]
[1741509560263,0.2996262,85962.0,85961.0,0.1367916]
[1741509560449,0.2996262,85962.0,85961.0,0.4975916]
[1741509565865,0.2953115,85962.0,85961.0,0.4975916]
[1741509566068,0.2953115,85962.0,85961.0,0.1367916]
[1741509567667,0.15583727,85962.0,85961.0,0.1367916]
[1741509568156,0.21823727,85962.0,85961.0,0.1367916]
[1741509568463,0.24993727,85962.0,85961.0,0.1367916]
[1741509569964,0.24993727,85962.0,85961.0,0.4975916]
[1741509575866,0.24993727,85962.0,85961.0,0.39508]
[1741509576273,0.24993727,85962.0,85961.0,0.36488]
[1741509576975,0.24993727,85962.0,85961.0,0.00408]
[1741509577370,0.25422658,85962.0,85961.0,0.004]
[1741509579269,0.25522658,85962.0,85961.0,0.00208]
[1741509579676,0.25522658,85962.0,85961.0,8e-05]
[1741509580277,0.18541578,85962.0,85955.0,4e-05]
[1741509580478,0.0698157,85956.0,85955.0,4e-05]
[1741509580777,0.1444557,85956.0,85955.0,4e-05]
[1741509581169,0.14874501,85956.0,85955.0,4e-05]
[1741509581369,0.0698181,85953.0,85952.0,0.3608]
[1741509581972,0.0688181,85953.0,85952.0,0.3608]
[1741509582279,0.0678181,85953.0,85952.0,0.36088]
[1741509582580,0.1322181,85953.0,85952.0,0.36088]
[1741509582769,0.1322181,85953.0,85952.0,0.36488]
[1741509583469,0.13650032,85953.0,85952.0,0.36488]
[1741509585292,0.13650032,85953.0,85952.0,0.3648]
[1741509585579,0.1322181,85953.0,85952.0,0.3648]
[1741509585874,0.1322181,85953.0,85952.0,0.004]
[1741509586875,0.1322181,85953.0,85952.0,0.00408]
[1741509591980,0.1322181,85953.0,85952.0,0.03528]
[1741509593189,0.13904,85953.0,85952.0,0.1371989]
[1741509593485,0.13904,85953.0,85952.0,0.1372389]
[1741509593686,0.2088581,85953.0,85952.0,0.1372389]
[1741509593884,0.2088581,85953.0,85952.0,0.1362389]
[1741509594282,0.2088581,85953.0,85952.0,0.1343189]
[1741509594585,0.2088581,85953.0,85952.0,0.0655]
[1741509598689,0.2088581,85953.0,85952.0,0.0022]
[1741509599787,0.2088581,85953.0,85952.0,0.0344]
[1741509600484,0.2088581,85953.0,85952.0,0.0342]
[1741509601084,0.2088581,85953.0,85952.0,0.0643]
[1741509601385,0.2088581,85953.0,85952.0,0.06438]
[1741509610895,0.2088581,85953.0,85952.0,0.00208]
[1741509611199,0.2088581,85953.0,85952.0,0.002]
[1741509611691,0.21321229,85953.0,85952.0,0.002]
[1741509611896,0.21321229,85953.0,85949.0,4e-05]
[1741509611897,0.0698205,85950.0,85949.0,4e-05]
[1741509612289,0.07317469,85950.0,85940.0,0.031]
[1741509612490,0.069823,85947.0,85942.0,4e-05]
[1741509612696,0.14881719,85947.0,85942.0,4e-05]
[1741509613006,0.14881719,85947.0,85943.0,0.031]
[1741509613186,0.14781719,85947.0,85943.0,0.031]
[1741509613593,0.14781719,85947.0,85943.0,0.0622]
[1741509613793,0.14781719,85947.0,85946.0,0.3618]
[1741509614193,0.14681719,85947.0,85946.0,0.36188]
[1741509614996,0.50761719,85947.0,85946.0,0.00208]
[1741509615321,0.0698327,85935.0,85930.0,0.27808583]
[1741509615597,0.3495127,85935.0,85930.0,0.27808583]
[1741509615803,0.3495127,85935.0,85931.0,0.0321]
[1741509615993,0.35386689,85935.0,85931.0,0.0321]
[1741509616392,0.41596689,85935.0,85933.0,4e-05]
[1741509616602,0.41596689,85935.0,85931.0,0.0321]
[1741509616903,0.41596689,85935.0,85934.0,0.21005933]
[1741509617303,0.41596689,85935.0,85934.0,0.21413933]
[1741509618194,0.41596689,85935.0,85934.0,0.21105933]